Cogmind - Beta 13 @@@ ROGUE MODE // 2024.04.21 @ 23:46:39 Player: Thqwib Result: Destroyed by as-93343 with Assembled Blade Performance ------------- Evolutions (1) 500 Regions Visited (3) 600 Robots Destroyed (32) 160 Value Destroyed (726) 726 Prototype IDs (1) 20 Alien Tech Used (0) 0 Bonus (0) 0 TOTAL SCORE: 2006 Bonus ------- None Cogmind --------- Core Integrity 0/400 Matter 108/300 Energy 92/125 System Corruption 10% Temperature Cool (0) Movement Rolling (95) Ox1 Location -9/Mines Parts ------- > --- POWER (1) -------- Light Ion Engine > --- PROPULSION (3) --- Aluminum Leg Wheel > --- UTILITY (3) ------ Small Storage Unit Visual Processing Unit Signal Interpreter > --- WEAPON (2) ------- Autogun > --- INVENTORY (8) ---- Improved Terrain Scanner Light Armor Plating Hacking Suite Rocket Launcher Datajack Hammer Peak State ------------ > --- POWER ------------ Heavy Ion Engine > --- PROPULSION ------- Aluminum Leg Aluminum Leg Aluminum Leg > --- UTILITY ---------- Small Storage Unit Visual Processing Unit Signal Interpreter > --- WEAPON ----------- Autogun Autogun > --- INVENTORY -------- Light Ion Engine Aluminum Leg Improved Terrain Scanner Light Armor Plating Hacking Suite Grenade Launcher Rocket Launcher Datajack [Rating: 15] Favorites ----------- Power Ion Engine Engine Ion Engine Propulsion Aluminum Leg Treads Light Treads Leg Aluminum Leg Wheel Wheel Utility Small Storage Unit Device Improved Terrain Scanner Storage Small Storage Unit Processor Signal Interpreter Weapon Autogun Energy Gun Medium Laser Ballistic Gun Autogun Launcher Grenade Launcher Build | -11 -10 -9 -9 ------- Run | Yrd Mat Mat Min Slots Evolved 2 | . . 2 . Power . | . . . . Propulsion 1 | . . 1 . Utility 1 | . . 1 . Weapon . | . . . . Parts Attached 47 | 7 6 26 8 Power 6 | 1 . 3 2 Engine 6 | 1 . 3 2 Core . | . . . . Reactor . | . . . . Propulsion 18 | 2 1 13 2 Treads 4 | . . 4 . Leg 5 | . . 4 1 Wheel 9 | 2 1 5 1 Hover . | . . . . Flight . | . . . . Utility 6 | 2 . 4 . Device 3 | 1 . 2 . Storage 1 | 1 . . . Processor 2 | . . 2 . Hackware . | . . . . Protection . | . . . . Artifact . | . . . . Weapon 17 | 2 5 6 4 Energy Gun 3 | 1 2 . . Energy Cannon . | . . . . Ballistic Gun 9 | 1 2 4 2 Ballistic Cannon . | . . . . Launcher 5 | . 1 2 2 Special Weapon . | . . . . Impact Weapon . | . . . . Slashing Weapon . | . . . . Piercing Weapon . | . . . . Special Melee Weapon . | . . . . Unidentified Prototypes 1 | . . 1 . Parts Lost 11 | . . 6 5 Power 3 | . . 1 2 Propulsion 5 | . . 3 2 Utility 1 | . . 1 . Weapon 2 | . . 1 1 Highest Loss Streak 5 | . . 4 5 To Critical Strikes . | . . . . Average Slot Usage (%) 97 | . 100 96 98 Engine 10 | . 14 10 10 Leg 19 | . . 14 32 Wheel 11 | . 28 15 . Device 5 | . 14 6 . Storage 11 | . 14 11 11 Processor 15 | . . 14 22 Energy Gun 4 | . 14 5 . Ballistic Gun 15 | . 6 14 18 Launcher 2 | . 7 . 2 Naked Turns . | . . . . Heaviest Build 20 | 14 16 19 20 Greatest Support 60 | 20 26 60 30 Greatest Overweight (x) 1 | . . 1 1 Average Overweight (x) . | . . . . Largest Inventory Capacity 8 | 8 8 8 8 Average Capacity 7 | 7 8 8 8 Most Carried 8 | 4 8 8 8 Average Carried 6 | 2 6 5 7 Final Capacity 8 | 8 8 8 8 Final Carried 8 | 3 8 8 6 Class Distribution -------------------- 62% | Scavenger-Mutant 37% | Mutant Dominant Class ---------------- Mutant | -10/Materials Scavenger-Mutant | -9/Materials Scavenger-Mutant | -9/Mines Resources | -11 -10 -9 -9 ----------- Run | Yrd Mat Mat Min Matter Collected 1041 | 276 102 493 170 Remotely . | . . . . Salvage Created 953 | 119 81 561 192 Parts 68 | 6 1 44 17 Haulers Intercepted 1 | . . 1 . Recyclers Shooed 3 | 1 . 1 1 Parts Field Recycled . | . . . . Retrieved Matter . | . . . . Parts Self-Destructed . | . . . . Prevented . | . . . . Kills | -11 -10 -9 -9 ------- Run | Yrd Mat Mat Min Combat Hostiles Destroyed 34 | . 2 14 18 Guns 17 | . 2 9 6 AOE 17 | . . 5 12 Classes Destroyed 11 | 2 1 5 3 Worker 2 | . . . 2 Tunneler 2 | 2 . . . Hauler 1 | . . 1 . Recycler 2 | 1 . 1 . Operator 2 | . . 2 . Watcher 1 | . . 1 . Swarmer 8 | . . 4 4 Grunt 9 | . 2 6 1 Brawler 1 | . . . 1 Sentry 4 | . . 4 . Assembled 12 | . . . 12 Best Kill Streak 13 | 2 1 4 13 Combat Bots Only 12 | . 1 4 12 Max Kills in Single Turn 4 | 1 1 3 4 Gunslinging . | . . . . Exploded 3 | . . 3 3 Melee . | . . . . Uniques/NPCs Destroyed . | . . . . Combat | -11 -10 -9 -9 -------- Run | Yrd Mat Mat Min Hostile Shots Fired 136 | . 13 64 59 Missed 31 | . 3 18 10 Damage Taken 1754 | . 169 616 969 Core 453 | . 24 124 305 Absorbed by Shields . | . . . . Core Remaining (%) 95 | 100 90 . . Volleys Fired 85 | 6 7 41 31 Largest 2 | 2 2 2 2 Hottest 83 | 60 70 83 56 Shots Fired 160 | 12 12 81 55 Gun 141 | 12 7 75 47 Cannon . | . . . . Launcher 19 | . 5 6 8 Special . | . . . . Kinetic 101 | 6 2 46 47 Thermal 29 | . . 29 . Explosive 19 | . 5 6 8 Electromagnetic 11 | 6 5 . . Robot Hit Streak 14 | 6 3 9 14 Robot Miss Streak 4 | 1 2 3 4 Penetration Max . | . . . . Secondary Targets 1 | . . . 1 Max Gunslinging Chain 1 | . . . 1 Shots Hit Robots 104 | 9 6 52 37 Core Hits 76 | 4 5 34 33 Critical Kills 1 | 1 . . . Critical Parts Destroyed 1 | . . . 1 Critical Strikes 2 | 1 . . 1 Destroy 2 | 1 . . 1 Melee Attacks . | . . . . Impact . | . . . . Slashing . | . . . . Piercing . | . . . . Sneak Attacks . | . . . . Combat Hostiles . | . . . . Follow-up Attacks . | . . . . Damage Inflicted 2784 | 89 128 1195 1372 Guns 1424 | 89 55 727 553 Cannons . | . . . . Explosions 1352 | . 73 460 819 Melee . | . . . . Ramming 8 | . . 8 . Kinetic 1094 | 39 15 487 553 Thermal 240 | . . 240 . Explosive 1352 | . 73 460 819 Electromagnetic 90 | 50 40 . . Impact . | . . . . Slashing . | . . . . Piercing . | . . . . Highest Corruption 10 | . . 8 10 Average Corruption 6 | . . 3 8 Corruption Purged . | . . . . Corruption Blocked . | . . . . Effects 23 | . . 7 16 Message Errors 5 | . . . 5 Matter Fused 6 | . . 3 3 Energy Discharges 4 | . . . 4 Data Loss (minor) 4 | . . 3 1 Data Loss (major) 2 | . . . 2 Misfires 1 | . . 1 . Weapon Failures 1 | . . . 1 Overload Shots . | . . . . Overflow Damage 23 | . . 17 6 Projectiles . | . . . . Explosions 23 | . . 17 6 Melee . | . . . . Knockbacks . | . . . . Impact . | . . . . Kinetic . | . . . . Secondary . | . . . . Self-Inflicted Damage 280 | . 39 53 188 Shots 8 | . 1 2 5 Rammed 2 | . . 2 . Targets Rammed 2 | . . 2 . Kicked . | . . . . Crushed . | . . . . Highest Temperature 147 | 20 93 147 24 Average Temperature 38 | 15 41 59 7 Received Heat Transfer 501 | . 93 258 150 Siege Activations . | . . . . Robots Corrupted . | . . . . Combat Hostiles . | . . . . Parts Fried . | . . . . Impact Corruptions . | . . . . Robots Melted . | . . . . Combat Hostiles . | . . . . Parts Melted . | . . . . Heat Transferred 703 | . . 703 . Parts Sabotaged . | . . . . Parts Stolen . | . . . . Parts Stripped . | . . . . Power Chain Reactions . | . . . . Alert | -11 -10 -9 -9 ------- Run | Yrd Mat Mat Min Peak Influence 370 | 15 136 370 285 Initial 111 | . 9 57 111 Average 159 | 9 68 200 194 Maximum Alert Level 1 | . . 1 1 Low Security (%) 52 | 100 100 37 36 Level 1 47 | . . 62 63 Level 2 . | . . . . Level 3 . | . . . . Level 4 . | . . . . Level 5 . | . . . . High Security . | . . . . Max Security . | . . . . Squads Dispatched 3 | . . 3 . Investigation . | . . . . Extermination . | . . . . Reinforcement 3 | . . 3 . Assault . | . . . . Garrison . | . . . . Intercept . | . . . . Searches Triggered . | . . . . Construction Impeded . | . . . . Haulers Reinforced . | . . . . Active Scanning Responses . | . . . . Cargo Convoy Interrupts . | . . . . Stealth | -11 -10 -9 -9 --------- Run | Yrd Mat Mat Min Distress Signals 2 | . . 2 . Communications Jammed . | . . . . Distress Signals . | . . . . Times Spotted 47 | . 6 20 21 Peak Tracking Total 10 | . 2 5 10 Tactical Retreats 1 | . . 1 . Traps | -11 -10 -9 -9 ------- Run | Yrd Mat Mat Min Traps Triggered . | . . . . Indirectly . | . . . . Trap Hack Attempts . | . . . . Triggered . | . . . . Disarmed . | . . . . Reprogrammed . | . . . . Reused . | . . . . Traps Extracted . | . . . . Installed . | . . . . Triggered . | . . . . Machines | -11 -10 -9 -9 ---------- Run | Yrd Mat Mat Min Machines Disabled 2 | . 1 . 1 Max in Single Turn 1 | . 1 . 1 Machines Repaired . | . . . . Machines Dismantled . | . . . . Machines Sabotaged . | . . . . Overloaded Fab Kills . | . . . . Hacking | -11 -10 -9 -9 --------- Run | Yrd Mat Mat Min Machines Accessed 11 | . 5 6 . Terminals 8 | . 4 4 . Fabricators . | . . . . Repair Stations . | . . . . Recycling Units 3 | . 1 2 . Scanalyzers . | . . . . Garrison Access . | . . . . Total Hacks 28 | . 14 14 . Successful 10 | . 6 4 . Failed 18 | . 8 10 . Catastrophic 6 | . 4 2 . Database Lockouts . | . . . . Manual 9 | . 1 8 . Terminals 24 | . 12 12 . Fabricators . | . . . . Repair Stations . | . . . . Recycling Units 4 | . 2 2 . Scanalyzers . | . . . . Garrison Access . | . . . . Terminal Hacks 6 | . 4 2 . Emergency Access Points 1 | . 1 . . Hauler Manifests 1 | . . 1 . Registered Components 1 | . 1 . . Zone Layout 3 | . 2 1 . Fabricator Hacks . | . . . . Repair Station Hacks . | . . . . Recycling Unit Hacks 2 | . 1 1 . Retrieve Components 2 | . 1 1 . Scanalyzer . | . . . . Garrison Access Hacks . | . . . . Unauthorized Hacks 2 | . 1 1 . Terminals 2 | . 1 1 . Botnet 2 | . 1 1 . Fabricators . | . . . . Repair Stations . | . . . . Recycling Units . | . . . . Scanalyzers . | . . . . Garrison Access . | . . . . Data Cores Recovered . | . . . . Used . | . . . . Hacking Detections 10 | . 5 5 . Full Trace Events . | . . . . Feedback Events . | . . . . Feedback Blocked . | . . . . Robot Schematics Acquired . | . . . . Robots Built . | . . . . Authchips . | . . . . Time . | . . . . Total Robot Build Rating . | . . . . Part Schematics Acquired . | . . . . Parts Built . | . . . . Authchips . | . . . . Time . | . . . . Total Part Build Rating . | . . . . Parts Repaired . | . . . . Time . | . . . . Parts Recycled . | . . . . Recycled Matter . | . . . . Retrieved Matter . | . . . . Retrieved Components 12 | . 2 10 . Parts Scanalyzed . | . . . . Part Schematics Acquired . | . . . . Parts Damaged . | . . . . Bothacking | -11 -10 -9 -9 ------------ Run | Yrd Mat Mat Min Used RIF Installer . | . . . . Robots Hacked . | . . . . Non-combat . | . . . . Combat . | . . . . Robot Hacks Applied . | . . . . Relay Couplers Released . | . . . . Fabnet Peak Effective % . | . . . . Robots Rewired . | . . . . Allies Hacked . | . . . . Hacks Repelled . | . . . . Allies | -11 -10 -9 -9 -------- Run | Yrd Mat Mat Min Total Allies 1 | . . . 1 Largest Group 1 | . . . 1 Highest-Rated Group 31 | . . . 31 Highest-Rated Ally 31 | . . . 31 Total Orders . | . . . . Ally Attacks 3 | . . . 3 Total Damage 41 | . . . 41 Kills 2 | . . . 2 Allies Corrupted . | . . . . Allies Melted . | . . . . Intel | -11 -10 -9 -9 ------- Run | Yrd Mat Mat Min Robot Analysis Total . | . . . . Derelict Logs Recovered 1 | . . . 1 Drone Launches . | . . . . Drone Recoveries . | . . . . Exploration | -11 -10 -9 -9 ------------- Run | Yrd Mat Mat Min Turns Passed 1508 | 166 200 610 532 Spaces Moved 1004 | 81 189 394 340 Core 3 | 3 . . . Treads 8 | . . 8 . Legs 508 | . . 168 340 Wheels 485 | 78 189 218 . Hover . | . . . . Flight . | . . . . Fastest Speed 50 | 50 80 80 120 Average Speed 103 | 78 83 103 120 Slowest Speed 190 | 80 90 190 190 Overloaded Moves . | . . . . Propulsion Burnouts . | . . . . Robots Hopped . | . . . . Cave-ins Triggered . | . . . . Exploration Rate (%) 34 | 5 46 28 57 Regions Visited 3 Branch Regions 1 Pre-discovered Areas . | . . . . Known Exits Taken 1 | . . 1 . Unknown Exits Taken 2 | 1 1 . . Scrap Searched 2 | . . . 2 Spaces Dug 10 | . 10 . . Terrain Destroyed 118 | . 35 37 46 Melee . | . . . . Projectile . | . . . . AOE 118 | . 35 37 46 Terrain Rammed . | . . . . Walls Destroyed . | . . . . Machines Disabled . | . . . . Actions | -11 -10 -9 -9 --------- Run | Yrd Mat Mat Min Total 1329 | 170 220 523 416 Wait 148 | 69 7 42 30 Move 1001 | 80 188 393 340 Hop . | . . . . Pick Up 24 | 6 7 8 3 Fast Attach 17 | 6 2 7 2 Attach 10 | 1 . 7 2 Detach . | . . . . Swap 20 | . 4 12 4 Drop 22 | 2 5 11 4 Fire 85 | 6 7 41 31 Melee . | . . . . Ram 2 | . . 2 . Kick . | . . . . Crush . | . . . . Escape Stasis . | . . . . Rewire . | . . . . Trap . | . . . . Miscellaneous . | . . . . Route ------- -11/Scrapyard -10/Materials -9/Materials -9/Mines (discovered 2 exits: *Mat x2) History --------- Turn | Location | Event 13 | -11/Scrapyard | Discovered new exit (range 16) 167 | -11/Scrapyard | Entered Materials 303 | -10/Materials | Build established: Mutant 333 | -10/Materials | Discovered new exit (range 20) 367 | -10/Materials | Entered another Materials area 367 | -9/Materials | Evolved 2 slots: Propulsion x1, Utility x1 727 | -9/Materials | Lost 4 parts (1p2n1w) 909 | -9/Materials | Discovered new exit (range 13) 976 | -9/Materials | Identified exit to Mines 977 | -9/Materials | Entered Mines 977 | -9/Mines | Discovered new exit (range 15) 979 | -9/Mines | Build established: Scavenger-Mutant 995 | -9/Mines | YI-UF0 nonchalantly dropped a Grenade Launcher on the ground 1000 | -9/Mines | Identified exit to Materials 1353 | -9/Mines | Discovered exit to Materials (range 7) 1357 | -9/Mines | Received a Mining Laser from a helpful Derelict 1450 | -9/Mines | Assembled infested the area 1455 | -9/Mines | Assisted by a Guerilla fighting off Assembled 1464 | -9/Mines | Learned 2 Materials zone layouts 1475 | -9/Mines | System corruption reached 10% 1477 | -9/Mines | Core integrity fell below 50% 1486 | -9/Mines | Core integrity fell below 20% 1509 | -9/Mines | Destroyed by as-93343 with Assembled Blade Last Messages --------------- 01480_ K-01 Serf collects debris. 01482_ as-14474 destroyed. 01482_ as-91848 destroyed. 01483_ The unstable cave ceiling collapses. 01484_ System corrupted: Component data lost. 01484_ K-01 Serf collects debris. 01485_ as-31127 destroyed. 01485_ K-01 Serf destroyed. 01487_ The unstable cave ceiling collapses. 01488_ Autogun destroyed. 01490_ Ion Engine destroyed. 01491_ as-71706 destroyed. 01493_ as-05091 destroyed. 01495_ Acquired 3 matter. 01503_ The unstable cave ceiling collapses. 01503_ Dropped Aluminum Leg. 01505_ Acquired Lgt. Ion Engine. 01506_ Aluminum Leg destroyed. 01508_ Acquired Wheel. 01509_ The unstable cave ceiling collapses. Map ----- +----------------------------------------------------+ | ###]#### #####??????## ### ###?????? | | ]== ##????## ##????? | | ][%! ##??## ##???? | | ##### #### #???? | | ????# ## ## #???? | | ? ###### ## ##???? | | #### #????## #### ##?###????? | | ???## ##?????# ##??## #?????????? | | ????####??????# ##????## #?????????? | | ??????????????# #??????## ##?????????? | | ??????????????# ##??????## #??????????? | | ??????????????## ##??????## ##?????????? | | ???????????????####??????## ####??????? | | ?????????????????????????# """ ##?????? | | ?????????????????????????# """ #?????? | | ????????????##???????????## """ ## #?????? | | ???????????## #???????????## """ #### ##?????? | | ???????????# #???????????# #?## ##?????? | | ???????????# #??????????# ##?# #?????? | | ????????????# #?????????# #??# ##????? | | ?????????????# ####?????## #??# ##???? | | ?????????????# ####???## #??# ##??? | | ??????????????# ###??# #??## #??? | | ??????????###??# #### #???## #??? | | ????# ### ## ## !%| #????## #??? | | ?????# @%*!= #?????## ##??? | | ??????# =a######??????####???? | | ??????#### ## # ##?????????????????? | | ?????????##????# #?????????????????? | | ???????????????# ## a % ?????????? | | ?????????????# # # a #???????? | | ?????????????# ######## ### #???????? | | ???????????? ???????####??#% # ##???????? | | ???????????###??????????????? #? #????????? | | ????????????????????????????? #?? #???????? | | ?????????????????????????????? #???## ??????? | | ?????????????????????????????? #??????? ??????? | | ??????????????????????????????? ??????????????? | | ??????????????????????????????? ??????????????? | | ???????????????????????????????? ?????????????? | | ????????????????????????????????#?????????????? | | ??????????????????????????????????????????????? | | ??????????????????????????????????????????????? | | ??????????????????????????????????????????????? | | ??????????????????????????????????????????????? | | ??????????????????????????????????????????????? | | ??????????????????????????????????????????????? | | ??????????????????????????????????????????????? | | ??????????????????????????????????????????????? | | ??????????????????????????????????????????????? | +----------------------------------------------------+ Best States ------------- Heat Dissipation 28 Energy Generation 14 Energy Capacity 280 Matter Stores 300 Matter Capacity 300 Sight Range 18 Robot Scan Range 14 Terrain Scan Range 16 Terrain Scan Density 10 Evasion (%) 55 Recoil Reduction 3 Item Schematics ----------------- None Robot Schematics ------------------ None Fabricated ------------ Nothing Alien Tech Used ----------------- None Achievements -------------- None Challenges ------------ None Game ------ Seed PotentialLinearAirjet Manual? 0 Play Time 00:30:24 Cumulative 16.3 hours Start 2024.04.21 @ 20:42:47 End 2024.04.21 @ 23:46:39 Sessions 2 Manual Loads 0 Difficulty Rogue Special Mode None Game No. 12 Rogue 12 Adventurer 0 Explorer 0 Win Type - Total 0 Types 0/0/0/0/0/0/0/0/0 Lore% 11 Gallery% 21 Achievement% 17 Wizard Run 0 Options --------- Layout 2 ASCII 0 Keyboard 0 Movement Arrows Keybinds 0 Fullscreen 2 Font 24/Smallcaps Map View 50x44 Zoom Use 0% Tactical HUD 1 Map Filters NONE Filters NONE Steam 0 RUN: 92207e3c-1b12-4555-9318-fced45099e7f